fUST/lending_fUST_20250524
["ID","MTS","AMOUNT","RATE_DAILY","PERIOD"]
[362205173,1748094646981,-781.36,0.00023561,3]
[362205174,1748094646990,-1006.92,0.00023561,3]
[362205175,1748094647000,-593.33,0.00023561,3]
[362205176,1748094647010,-430.0,0.00023561,3]
[362205177,1748094647020,-430.0,0.00023561,3]
[362205178,1748094647029,-430.0,0.00023561,3]
[362205179,1748094647039,-430.0,0.00023561,3]
[362205180,1748094647049,-536.23,0.00023561,3]
[362205181,1748094647058,-430.0,0.00023561,3]
[362205182,1748094647068,-495.43132982,0.00023561,3]
[362205183,1748094647078,-430.0,0.00023561,3]
[362205184,1748094647211,-570.4,0.00023561,3]
[362205185,1748094647220,-151.0,0.00023765,2]
[362205186,1748094647230,-868.8,0.0002379,10]
[362205187,1748094647239,-5000.0,0.000238,2]
[362205188,1748094647249,-5000.0,0.000238,2]
[362205189,1748094647258,-5000.0,0.000238,2]
[362205190,1748094647267,-5000.0,0.000238,2]
[362205191,1748094647277,-5000.0,0.000238,2]
[362205192,1748094647287,-5000.0,0.000238,2]
[362205193,1748094647296,-5000.0,0.000238,2]
[362205194,1748094647305,-5000.0,0.000238,2]
[362205195,1748094647315,-5000.0,0.000238,2]
[362205196,1748094647324,-5000.0,0.000238,2]
[362205197,1748094647333,-5000.0,0.000238,2]
[362205198,1748094647343,-5000.0,0.000238,2]
[362205199,1748094647352,-5000.0,0.000238,2]
[362205200,1748094647362,-151.0,0.000238,7]
[362205201,1748094647372,-151.0,0.000238,2]
[362205202,1748094647382,-201.26251776,0.00023823,10]
[362205203,1748094647391,-430.0,0.00023835,3]
[362205204,1748094647401,-171.0,0.00023835,3]
[362205205,1748094647411,-781.36,0.00023835,3]
[362205206,1748094647420,-1006.92,0.00023835,3]
[362205207,1748094647430,-593.33,0.00023835,3]
[362205208,1748094647441,-430.0,0.00023835,3]
[362205209,1748094647451,-430.0,0.00023835,3]
[362205210,1748094647461,-393.85,0.00023835,3]
[362205211,1748094647471,-430.0,0.00023835,3]
[362205212,1748094647482,-536.23,0.00023835,3]
[362205213,1748094647491,-430.0,0.00023835,3]
[362205214,1748094647501,-430.0,0.00023835,3]
[362205215,1748094647512,-404.61806677,0.000239,2]
[362205216,1748094647523,-1885.01,0.00023963,2]
[362205217,1748094647533,-160.189526,0.00024108,10]
[362205218,1748094647543,-167.877289,0.00024108,10]
[362205219,1748094647552,-430.0,0.00024109,3]
[362205220,1748094647562,-781.36,0.00024109,3]
[362205221,1748094647571,-1006.92,0.00024109,3]
[362205222,1748094647581,-593.33,0.00024109,3]
[362205223,1748094647590,-430.0,0.00024109,3]
[362205224,1748094647601,-430.0,0.00024109,3]
[362205225,1748094647611,-430.0,0.00024109,3]
[362205226,1748094647621,-536.23,0.00024109,3]
[362205227,1748094647630,-430.0,0.00024109,3]
[362205228,1748094647640,-430.0,0.00024109,3]
[362205229,1748094647650,-201.26251776,0.00024362,11]
[362205230,1748094647660,-277.2318163,0.00024383,3]
[362205231,1748094647669,-314.61239117,0.00024383,3]
[362205232,1748094647679,-781.36,0.00024383,3]
[362205233,1748094647689,-1006.92,0.00024383,3]
[362205234,1748094647699,-593.33,0.00024383,3]
[362205235,1748094647713,-238.31755954,0.00024383,3]
[362205236,1748094647723,-430.0,0.00024383,3]
[362205237,1748094647733,-430.0,0.00024383,3]
[362205238,1748094647743,-536.23,0.00024383,3]
[362205239,1748094647754,-430.0,0.00024383,3]
[362205240,1748094647764,-430.0,0.00024383,3]
[362205241,1748094647774,-160.189526,0.00024402,2]
[362205242,1748094647783,-167.877289,0.00024402,2]
[362205243,1748094647794,-229.12393663,0.00024414,2]
[362205244,1748094647804,-500.0,0.0002449,2]
[362205245,1748094647814,-970.459369,0.00024499,2]
[362205246,1748094647823,-160.189526,0.000245,30]
[362205247,1748094647833,-167.877289,0.000245,30]
[362205248,1748094647842,-160.189525,0.000245,30]
[362205249,1748094647851,-781.36,0.00024657,3]
[362205250,1748094647861,-2885.31,0.00024657,4]
[362205251,1748094647871,-1006.92,0.00024657,3]
[362205252,1748094647881,-593.33,0.00024657,3]
[362205253,1748094647890,-430.0,0.00024657,3]
[362205254,1748094647900,-430.0,0.00024657,3]
[362205255,1748094647911,-536.23,0.00024657,3]
[362205256,1748094647920,-430.0,0.00024657,3]
[362205257,1748094647931,-430.0,0.00024657,3]
[362205258,1748094647941,-215.0738,0.00024684,2]
[362205259,1748094647951,-1541.0907604,0.00024797,2]
[362205260,1748094647962,-24789.9772994,0.000248,2]
[362205261,1748094647971,-46038.5292704,0.00024887,2]
[362205262,1748094647982,-769938.59340202,0.00024897,15]
[362205267,1748095265748,-167.439824,0.00013699,2]
[362205287,1748095832255,-206.91,0.0001593,2]
[362205288,1748095832265,-153.95298201,0.00017157,2]
[362205289,1748095832274,-139.13701799,0.00017257,2]
[362205290,1748095832424,-171.22298201,0.00017257,2]
[362205291,1748095832435,-153.95298201,0.00018117,2]
[362205292,1748095832444,-413.81,0.00018478,2]
[362205293,1748095832454,-462.09666475,0.00018509,2]
[362205297,1748095838326,-38.46024605,0.00018509,2]
[362205299,1748095838336,-153.95298201,0.00019077,2]
[362205300,1748095838347,-145.49637975,0.00019176,2]
[362205333,1748095843435,-830.50362025,0.00019176,2]
[362205335,1748095843446,-211.0,0.00019177,2]
[362205337,1748095843456,-300.0,0.00019177,2]
[362205339,1748095843465,-300.0,0.00019177,2]
[362205341,1748095843475,-300.0,0.00019177,2]
[362205343,1748095843484,-430.0,0.00019178,2]
[362205345,1748095843493,-430.0,0.00019178,2]
[362205347,1748095843502,-430.0,0.00019178,2]
[362205349,1748095843512,-430.0,0.00019178,2]
[362205351,1748095843521,-430.0,0.00019178,2]
[362205354,1748095843531,-430.0,0.00019178,2]
[362205357,1748095843542,-430.0,0.00019178,2]
[362205360,1748095843551,-430.0,0.00019178,2]
[362205363,1748095843560,-430.0,0.00019178,2]
[362205366,1748095843570,-430.0,0.00019178,2]
[362205369,1748095843579,-545.41,0.00019178,2]
[362205372,1748095843589,-430.0,0.00019178,2]
[362205374,1748095843598,-430.0,0.00019178,2]
[362205376,1748095843608,-488.53598058,0.00019178,2]
[362205378,1748095843618,-430.0,0.00019178,2]
[362205380,1748095843627,-430.0,0.00019178,2]
[362205382,1748095843637,-430.0,0.00019178,2]
[362205383,1748095843658,-430.0,0.00019178,2]
[362205385,1748095843668,-430.0,0.00019205,2]
[362205387,1748095843677,-430.0,0.00019205,2]
[362205389,1748095843686,-430.0,0.00019205,2]
[362205391,1748095843696,-430.0,0.00019205,2]
[362205393,1748095843705,-430.0,0.00019205,2]
[362205396,1748095843715,-430.0,0.00019205,2]
[362205399,1748095843725,-430.0,0.00019205,2]
[362205402,1748095843734,-420.44,0.00019205,2]
[362205406,1748095843748,-531.92173211,0.00019205,2]
[362205408,1748095843758,-545.41,0.00019205,2]
[362205410,1748095843767,-430.0,0.00019205,2]
[362205412,1748095843777,-430.0,0.00019205,2]
[362205414,1748095843787,-430.0,0.00019205,2]
[362205416,1748095843797,-430.0,0.00019205,2]
[362205418,1748095843806,-430.0,0.00019205,2]
[362205420,1748095843816,-430.0,0.00019205,2]
[362205422,1748095843825,-430.0,0.00019232,2]
[362205424,1748095843835,-430.0,0.00019232,2]
[362205426,1748095843844,-430.0,0.00019232,2]
[362205428,1748095843853,-430.0,0.00019232,2]
[362205430,1748095843863,-430.0,0.00019232,2]
[362205432,1748095843873,-430.0,0.00019232,2]
[362205434,1748095843882,-430.0,0.00019232,2]
[362205436,1748095843891,-545.41,0.00019232,2]
[362205437,1748095843901,-430.0,0.00019232,2]
[362205439,1748095843910,-430.0,0.00019232,2]
[362205442,1748095843920,-430.0,0.00019232,2]
[362205444,1748095843930,-404.02542325,0.00019232,2]
[362205446,1748095843939,-430.0,0.00019232,2]
[362205448,1748095843949,-430.0,0.00019232,2]
[362205450,1748095843958,-430.0,0.0001926,2]
[362205452,1748095843967,-162.6,0.0001926,2]
[362205453,1748095843976,-430.0,0.0001926,2]
[362205455,1748095843986,-430.0,0.0001926,2]
[362205458,1748095843995,-430.0,0.0001926,2]
[362205460,1748095844005,-430.0,0.0001926,2]
[362205462,1748095844015,-430.0,0.0001926,2]
[362205464,1748095844024,-545.41,0.0001926,2]
[362205465,1748095844033,-430.0,0.0001926,2]
[362205467,1748095844042,-430.0,0.0001926,2]
[362205469,1748095844052,-430.0,0.0001926,2]
[362205472,1748095844062,-181.61,0.0001926,2]
[362205474,1748095844071,-430.0,0.0001926,2]
[362205475,1748095844080,-430.0,0.00019287,2]
[362205477,1748095844090,-430.0,0.00019287,2]
[362205480,1748095844099,-466.95,0.00019287,2]
[362205482,1748095844111,-430.0,0.00019287,2]
[362205484,1748095844121,-304.23802086,0.00019287,2]
[362205486,1748095844131,-545.41,0.00019287,2]
[362205488,1748095844141,-430.0,0.00019287,2]
[362205490,1748095844150,-430.0,0.00019287,2]
[362205491,1748095844160,-430.0,0.00019287,2]
[362205494,1748095844171,-430.0,0.00019287,2]
[362205495,1748095844180,-500.0,0.00019313,2]
[362205498,1748095844190,-500.0,0.00019313,2]
[362205499,1748095844199,-523.73958124,0.00019313,2]
[362205500,1748095844209,-226.29398185,0.00019313,2]
[362205501,1748095844218,-500.0,0.00019313,2]
[362205502,1748095844227,-400.56925346,0.00019313,2]
[362205503,1748095844237,-430.0,0.00019315,2]
[362205504,1748095844247,-545.41,0.00019315,2]
[362205505,1748095844256,-430.0,0.00019315,2]
[362205506,1748095844266,-430.0,0.00019315,2]
[362205507,1748095844277,-430.0,0.00019315,2]
[362205508,1748095844286,-266.15,0.00019315,2]
[362205509,1748095844296,-430.0,0.00019342,2]
[362205510,1748095844305,-545.41,0.00019342,2]
[362205511,1748095844314,-430.0,0.00019342,2]
[362205512,1748095844324,-430.0,0.00019342,2]
[362205513,1748095844333,-430.0,0.00019342,2]
[362205514,1748095844343,-430.0,0.00019369,2]
[362205515,1748095844352,-545.41,0.00019369,2]
[362205516,1748095844364,-430.0,0.00019369,2]
[362205517,1748095844377,-430.0,0.00019369,2]
[362205518,1748095844387,-430.0,0.00019369,2]
[362205519,1748095844397,-430.0,0.00019397,2]
[362205520,1748095844406,-545.41,0.00019397,2]
[362205521,1748095844418,-430.0,0.00019397,2]
[362205522,1748095844428,-430.0,0.00019397,2]
[362205524,1748095844437,-430.0,0.00019397,2]
[362205525,1748095844447,-430.0,0.00019424,2]
[362205526,1748095844456,-545.41,0.00019424,2]
[362205527,1748095844467,-430.0,0.00019424,2]
[362205528,1748095844477,-430.0,0.00019424,2]
[362205529,1748095844486,-430.0,0.00019424,2]
[362205530,1748095844496,-430.0,0.00019452,2]
[362205531,1748095844506,-545.41,0.00019452,2]
[362205532,1748095844516,-430.0,0.00019452,2]
[362205533,1748095844527,-430.0,0.00019452,2]
[362205534,1748095844537,-430.0,0.00019452,2]
[362205535,1748095844546,-430.0,0.00019479,2]
[362205536,1748095844556,-545.41,0.00019479,2]
[362205537,1748095844566,-430.0,0.00019479,2]
[362205538,1748095844576,-430.0,0.00019479,2]
[362205539,1748095844586,-430.0,0.00019479,2]
[362205540,1748095844596,-430.0,0.00019506,2]
[362205541,1748095844606,-545.41,0.00019506,2]
[362205542,1748095844615,-328.84474009,0.00019506,2]
[362205543,1748095844767,-430.0,0.00019506,2]
[362205544,1748095844777,-430.0,0.00019506,2]
[362205545,1748095844788,-430.0,0.00019534,2]
[362205546,1748095844799,-545.41,0.00019534,2]
[362205547,1748095844808,-430.0,0.00019534,2]
[362205548,1748095844817,-430.0,0.00019534,2]
[362205549,1748095844828,-430.0,0.00019561,2]
[362205550,1748095844837,-545.41,0.00019561,2]
[362205551,1748095844847,-430.0,0.00019561,2]
[362205552,1748095844856,-430.0,0.00019561,2]
[362205553,1748095844866,-430.0,0.00019589,2]
[362205554,1748095844875,-545.41,0.00019589,2]
[362205555,1748095844885,-430.0,0.00019589,2]
[362205556,1748095844895,-521.11357219,0.00019589,2]
[362205557,1748095844904,-430.0,0.00019616,2]
[362205558,1748095844914,-545.41,0.00019616,2]
[362205559,1748095844924,-430.0,0.00019616,2]
[362205560,1748095844933,-430.0,0.00019643,2]
[362205561,1748095844943,-545.41,0.00019643,2]
[362205562,1748095844952,-403.51640306,0.00019643,2]
[362205563,1748095844962,-430.0,0.00019671,2]
[362205564,1748095844972,-545.41,0.00019671,2]
[362205565,1748095844981,-430.0,0.00019698,2]
[362205566,1748095844991,-545.41,0.00019698,2]
[362205567,1748095845001,-430.0,0.00019726,2]
[362205568,1748095845010,-545.41,0.00019726,2]
[362205569,1748095845019,-430.0,0.00019753,2]
[362205570,1748095845029,-545.41,0.00019753,2]
[362205571,1748095845038,-430.0,0.0001978,2]
[362205572,1748095845047,-545.41,0.0001978,2]
[362205573,1748095845057,-517.27,0.00019798,2]
[362205574,1748095845066,-267.70325024,0.00019808,2]
[362205575,1748095845076,-545.55448948,0.00019808,2]
[362205576,1748095845086,-620.72,0.00021118,2]
[362205577,1748095845095,-229.12393663,0.00021413,2]
[362205578,1748095845104,-201.26251776,0.000219,6]
[362205579,1748095845113,-151.0,0.00022,3]
[362205580,1748095845122,-724.17,0.00022438,2]
[362205581,1748095845131,-173.76,0.0002299,10]
[362205582,1748095845141,-500.0,0.00022999,2]
[362205583,1748095845150,-500.0,0.00022999,2]
[362205584,1748095845160,-500.0,0.00022999,2]
[362205585,1748095845169,-156.15347721,0.00022999,2]
[362205586,1748095845179,-429.80444617,0.00022999,2]
[362205587,1748095845188,-500.0,0.00022999,2]
[362205588,1748095845197,-500.0,0.00022999,2]
[362205589,1748095845207,-500.0,0.00022999,2]
[362205590,1748095845216,-500.0,0.00022999,2]
[362205591,1748095845236,-500.0,0.00022999,2]
[362205592,1748095845247,-508.81929466,0.00022999,2]
[362205593,1748095845256,-500.0,0.00022999,2]
[362205594,1748095845267,-500.0,0.00022999,2]
[362205595,1748095845276,-500.0,0.00022999,2]
[362205596,1748095845287,-2644.87,0.00022999,2]
[362205597,1748095845297,-50000.0,0.00023,2]
[362205598,1748095845307,-50000.0,0.00023,2]
[362205599,1748095845316,-50000.0,0.00023,2]
[362205600,1748095845326,-50000.0,0.00023,2]
[362205601,1748095845336,-42000.0,0.00023,2]
[362205602,1748095845347,-8582.46962063,0.00023,10]
[362205603,1748095845356,-200.0,0.00023,10]
[362205604,1748095845366,-200.0,0.00023,10]
[362205605,1748095845376,-200.0,0.00023,10]
[362205606,1748095845388,-200.0,0.00023,10]
[362205607,1748095845397,-200.0,0.00023,10]
[362205608,1748095845407,-200.0,0.00023,10]
[362205609,1748095845417,-200.0,0.00023,10]
[362205610,1748095845427,-200.0,0.00023,10]
[362205611,1748095845437,-200.0,0.00023,10]
[362205612,1748095845447,-200.0,0.00023,10]
[362205613,1748095845456,-200.0,0.00023,10]
[362205614,1748095845466,-200.0,0.00023,10]
[362205615,1748095845476,-200.0,0.00023,10]
[362205616,1748095845486,-200.0,0.00023,10]
[362205617,1748095845496,-200.0,0.00023,10]
[362205618,1748095845505,-200.0,0.00023,10]
[362205619,1748095845515,-200.0,0.00023,10]
[362205620,1748095845524,-200.0,0.00023,10]
[362205621,1748095845535,-200.0,0.00023,10]
[362205622,1748095845544,-200.0,0.00023,10]
[362205623,1748095845555,-200.0,0.00023,10]
[362205624,1748095845566,-200.0,0.00023,10]
[362205625,1748095845575,-200.0,0.00023,10]
[362205626,1748095845585,-200.0,0.00023,10]
[362205627,1748095845595,-200.0,0.00023,10]
[362205628,1748095845606,-207.4,0.00023714,2]
[362205629,1748095845616,-827.63,0.00023758,2]
[362205630,1748095845625,-229.12393663,0.00024,10]
[362205631,1748095845635,-873.413432,0.00024499,2]
[362205632,1748095845647,-437.97,0.00024658,15]
[362205633,1748095845656,-1868.57254707,0.000248,2]
[362205634,1748095845668,-500.0,0.00024873,2]
[362205635,1748095845680,-363.7998607,0.00024877,2]
[362205636,1748095845691,-363.7998607,0.00024877,2]
[362205637,1748095845702,-363.7998607,0.00024877,2]
[362205638,1748095845712,-363.7998607,0.00024877,2]
[362205639,1748095845722,-363.7998607,0.00024877,2]
[362205640,1748095845733,-686.8279084,0.00024877,2]
[362205641,1748095845742,-385677.78155359,0.00024897,15]
[362205666,1748095846362,-313.326558,0.00024897,15]
[362205667,1748095846537,-9796.31424996,0.00024897,15]
[362205671,1748096325877,-167.439824,0.00013699,2]
[362205717,1748097032487,-203.16,0.0001468,2]
[362205718,1748097032497,-657.0,0.000148,2]
[362205719,1748097032506,-406.31,0.00016014,2]
[362205720,1748097032516,-609.47,0.00017349,2]
[362205721,1748097032525,-250.0,0.00017786,2]
[362205722,1748097032534,-300.0,0.00017999,2]
[362205723,1748097032543,-300.0,0.00017999,2]
[362205724,1748097032553,-300.0,0.00017999,2]
[362205725,1748097032562,-10995.54114921,0.00018,2]
[362205726,1748097032572,-239.032562,0.00018278,2]
[362205727,1748097032582,-812.63,0.00018683,2]
[362205728,1748097032591,-256.50714126,0.000189,2]
[362205729,1748097032601,-300.0,0.0001916,2]
[362205730,1748097032610,-35046.23650684,0.0001916,2]
[362205731,1748097032619,-11063.4085114,0.00019162,2]
[362205732,1748097032629,-500.0,0.00019177,2]
[362205734,1748097032639,-500.0,0.00019177,2]
[362205735,1748097032648,-241.75680161,0.00019177,2]
[362205736,1748097032658,-496.29959017,0.00019177,2]
[362205738,1748097032667,-500.0,0.00019177,2]
[362205740,1748097032677,-500.0,0.00019177,2]
[362205741,1748097032686,-500.0,0.00019177,2]
[362205743,1748097032695,-500.0,0.00019177,2]
[362205746,1748097032705,-500.0,0.00019177,2]
[362205748,1748097032715,-500.0,0.00019177,2]
[362205750,1748097032724,-453.96169492,0.00019177,2]
[362205752,1748097032734,-500.0,0.00019177,2]
[362205754,1748097032743,-500.0,0.00019177,2]
[362205755,1748097032753,-500.0,0.00019177,2]
[362205757,1748097032762,-500.0,0.00019177,2]
[362205759,1748097032772,-500.0,0.00019177,2]
[362205762,1748097032781,-500.0,0.00019177,2]
[362205764,1748097032791,-500.0,0.00019177,2]
[362205766,1748097032800,-500.0,0.00019177,2]
[362205768,1748097032810,-500.0,0.00019177,2]
[362205770,1748097032819,-500.0,0.00019177,2]
[362205772,1748097032829,-500.0,0.00019177,2]
[362205774,1748097032839,-500.0,0.00019177,2]
[362205776,1748097032848,-277.74992088,0.00019177,2]
[362205778,1748097032858,-500.0,0.00019177,2]
[362205780,1748097032867,-500.0,0.00019177,2]
[362205782,1748097032876,-400.0,0.00019178,2]
[362205784,1748097032885,-430.0,0.00019178,2]
[362205786,1748097032894,-400.0,0.00019178,2]
[362205788,1748097032904,-183.31829345,0.00019178,2]
[362205790,1748097032914,-450.0,0.00019178,2]
[362205792,1748097032923,-430.0,0.00019178,2]
[362205794,1748097032933,-450.0,0.00019178,2]
[362205796,1748097032942,-286.88173459,0.00019178,2]
[362205814,1748097038417,-300.0,0.00019177,2]
[362205815,1748097038427,-143.11826541,0.00019178,2]
[362205816,1748097038436,-223.56437684,0.00019178,2]
[362205817,1748097038493,-226.43562316,0.00019178,2]
[362205818,1748097038503,-430.0,0.00019178,2]
[362205819,1748097038512,-430.0,0.00019178,2]
[362205820,1748097038521,-430.0,0.00019178,2]
[362205821,1748097038531,-430.0,0.00019178,2]
[362205822,1748097038540,-430.0,0.00019178,2]
[362205823,1748097038550,-430.0,0.00019178,2]
[362205824,1748097038560,-430.0,0.00019178,2]
[362205825,1748097038570,-430.0,0.00019178,2]
[362205826,1748097038580,-267.37281817,0.00019178,2]
[362205827,1748097038590,-370.0,0.00019178,2]
[362205828,1748097038599,-407.21173222,0.00019178,2]
[362205829,1748097038608,-430.0,0.00019178,2]
[362205830,1748097038618,-430.0,0.00019178,2]
[362205831,1748097038627,-430.0,0.00019178,2]
[362205832,1748097038636,-430.0,0.00019178,2]
[362205833,1748097038646,-430.0,0.00019178,2]
[362205834,1748097038656,-430.0,0.00019178,2]
[362205835,1748097038666,-430.0,0.00019178,2]
[362205836,1748097038675,-430.0,0.00019178,2]
[362205837,1748097038684,-430.0,0.00019178,2]
[362205838,1748097038694,-430.0,0.00019178,2]
[362205839,1748097038703,-430.0,0.00019178,2]
[362205840,1748097038713,-430.0,0.00019178,2]
[362205841,1748097038723,-430.0,0.00019178,2]
[362205842,1748097038733,-400.88195381,0.00019178,2]
[362205843,1748097038742,-500.0,0.0001931,2]
[362205844,1748097038754,-500.0,0.00019312,2]
[362205845,1748097038766,-500.0,0.00019312,2]
[362205846,1748097038779,-300.0,0.00019639,2]
[362205847,1748097038791,-229.12393663,0.000216,2]
[362205848,1748097038803,-4662.2037155,0.00022193,2]
[362205849,1748097038816,-207.4,0.00023714,2]
[362205850,1748097038828,-256.50714126,0.000239,2]
[362205851,1748097038839,-404.0,0.00024243,2]
[362205852,1748097038850,-786.072089,0.00024389,2]
[362205853,1748097038860,-2534.67,0.00024499,2]
[362205854,1748097038872,-9398.77041094,0.000245,2]
[362205858,1748097040753,-166.22,0.00014698,2]
[362205859,1748097040765,-332.44,0.00016034,2]
[362205860,1748097040777,-498.66,0.0001737,2]
[362205861,1748097040789,-664.88,0.00018706,2]
[362205862,1748097040800,-831.09,0.00020042,2]
[362205863,1748097040810,-9887.1894684,0.000245,2]
[362205900,1748097044152,-997.31,0.00021378,2]
[362205902,1748097044163,-1163.53,0.00022714,2]
[362205904,1748097044174,-1329.75,0.00024051,2]
[362205906,1748097044186,-53477.03782066,0.000245,2]
[362205909,1748097044197,-500.0,0.00024533,2]
[362205911,1748097044210,-409.39921803,0.00024543,2]
[362205913,1748097044221,-193.4538228,0.00024762,2]
[362205915,1748097044232,-3278309.90012913,0.00024766,2]
[362205917,1748097044242,-500.0,0.00024799,2]
[362205920,1748097044253,-500.0,0.00024799,2]
[362205922,1748097044264,-459.30743405,0.00024799,2]
[362205924,1748097044275,-500.0,0.00024799,2]
[362205926,1748097044287,-500.0,0.00024799,2]
[362205928,1748097044298,-500.0,0.00024799,2]
[362205931,1748097044309,-400.86311232,0.00024799,2]
[362205933,1748097044320,-500.0,0.00024799,2]
[362205935,1748097044331,-256.17350627,0.00024799,2]
[362205937,1748097044343,-500.0,0.00024799,2]
[362205939,1748097044352,-358939.51209651,0.000248,2]
[362205982,1748097046775,-17640.98889743,0.000248,2]
[362205983,1748097046785,-500.89475507,0.00024824,3]
[362205984,1748097046795,-500.0,0.0002486,2]
[362205985,1748097046805,-500.0,0.00024882,2]
[362205986,1748097046816,-500.0,0.00024896,2]
[362205987,1748097046827,-500.0,0.00024896,2]
[362205988,1748097046837,-500.0,0.00024896,2]
[362205989,1748097046850,-500.0,0.00024896,2]
[362205990,1748097046861,-500.0,0.00024896,2]
[362205991,1748097046871,-500.0,0.00024896,2]
[362205992,1748097046882,-336.26624562,0.00024896,2]
[362205993,1748097046892,-409.56585408,0.00024897,2]
[362205994,1748097046906,-860.0,0.00024897,2]
[362205995,1748097276648,151.0,0.0002191,30]
[362205997,1748097876082,166.765299,0.00013699,2]
[362206013,1748098144509,253.61,0.00024658,120]
[362206088,1748098238722,-961.30081818,0.000165,2]
[362206099,1748098240881,-406.2899097,0.000165,2]
[362206107,1748098244570,-981.323186,0.000165,2]
[362206154,1748098246800,-281.52948762,0.000165,2]
[362206162,1748098856260,209.55864703,0.000246,120]
[362206164,1748098931459,6000.0,0.00024649,120]
[362206166,1748099042112,164.069907,0.00013699,2]
[362206194,1748099431784,-671.5565985,0.000165,2]
[362206196,1748099431795,-300.0,0.00017958,2]
[362206199,1748099431806,-1200.0,0.00017958,2]
[362206201,1748099431817,-647.3586872,0.00017959,3]
[362206203,1748099431827,-9770.0088971,0.00017959,2]
[362206205,1748099431838,-206.237557,0.00018176,2]
[362206207,1748099431849,-2134.6315386,0.0001819,2]
[362206209,1748099431860,-813.665196,0.00018246,2]
[362206211,1748099431870,-3400.0,0.000188,2]
[362206214,1748099431880,-152.0,0.00019084,2]
[362206216,1748099431891,-300.0,0.00019176,2]
[362206218,1748099431904,-512.77644593,0.00019177,2]
[362206220,1748099431915,-500.0,0.00019177,2]
[362206222,1748099431926,-500.0,0.00019177,2]
[362206224,1748099431936,-500.0,0.00019177,2]
[362206226,1748099431947,-500.0,0.00019177,2]
[362206228,1748099431958,-500.0,0.00019177,2]
[362206230,1748099431969,-624.17568016,0.00019177,2]
[362206232,1748099431981,-500.0,0.00019177,2]
[362206234,1748099431992,-500.0,0.00019177,2]
[362206237,1748099432003,-377.77499209,0.00019177,2]
[362206239,1748099432014,-500.0,0.00019177,2]
[362206241,1748099432025,-500.0,0.00019177,2]
[362206243,1748099432035,-500.0,0.00019177,2]
[362206245,1748099432046,-500.0,0.00019177,2]
[362206247,1748099432056,-444.8305022,0.00019177,2]
[362206250,1748099432068,-451.28302505,0.00019177,2]
[362206259,1748099432259,-48.71697495,0.00019177,2]
[362206260,1748099432274,-500.0,0.00019177,2]
[362206261,1748099432283,-446.19742508,0.00019177,2]
[362206263,1748099432294,-430.0,0.00019178,2]
[362206265,1748099432304,-430.0,0.00019178,2]
[362206267,1748099432313,-430.0,0.00019178,2]
[362206269,1748099432323,-430.0,0.00019178,2]
[362206271,1748099432332,-430.0,0.00019178,2]
[362206273,1748099432341,-537.39702192,0.00019178,2]
[362206275,1748099432351,-430.0,0.00019178,2]
[362206277,1748099432360,-430.0,0.00019178,2]